fUSD/lending_fUSD_20240803
["ID","MTS","AMOUNT","RATE_DAILY","PERIOD"]
[333961851,1722649864074,-1732.62,0.00016986,2]
[333961852,1722649864085,-788.88,0.00016986,2]
[333961853,1722649864094,-826.7,0.00016986,2]
[333961854,1722649864105,-151.347569,0.00016986,2]
[333961855,1722649864119,-500.0,0.00016986,2]
[333961856,1722649864129,-578.93,0.00016986,2]
[333961857,1722649864140,-1928.06,0.00016986,2]
[333961858,1722649864151,-784.78,0.00016986,2]
[333961859,1722649864162,-988.43,0.00016986,2]
[333961860,1722649864172,-151.356305,0.00016986,2]
[333961861,1722649864182,-827.17,0.00016986,2]
[333961862,1722649864192,-500.0,0.00016986,2]
[333961863,1722649864202,-500.0,0.00016986,2]
[333961864,1722649864212,-787.45,0.00016986,2]
[333961865,1722649864222,-500.0,0.00016986,2]
[333961866,1722649864232,-684.32,0.00016986,2]
[333961867,1722649864242,-500.0,0.00016986,2]
[333961868,1722649864252,-1502.0,0.00016986,2]
[333961869,1722649864261,-500.0,0.00016986,2]
[333961870,1722649864271,-500.0,0.00016986,2]
[333961871,1722649864281,-500.0,0.00016986,2]
[333961872,1722649864291,-2470.77,0.00016986,2]
[333961873,1722649864302,-593.2069555,0.00016986,2]
[333961874,1722649864311,-500.0,0.00016986,2]
[333961875,1722649864321,-920.08,0.00016986,2]
[333961876,1722649864331,-500.0,0.00016986,2]
[333961877,1722649864341,-659.46,0.00016986,2]
[333961878,1722649864351,-1170.39,0.00016986,2]
[333961879,1722649864365,-709.94,0.00016986,2]
[333961880,1722649864375,-2077.36,0.00016986,2]
[333961881,1722649864388,-151.468085,0.00016986,2]
[333961882,1722649864398,-500.0,0.00016986,2]
[333961883,1722649864408,-1322.73,0.00016986,2]
[333961884,1722649864417,-500.0,0.00016986,2]
[333961885,1722649864428,-2607.93,0.00016986,2]
[333961886,1722649864438,-2468.44,0.00016986,2]
[333961887,1722649864448,-500.0,0.00016986,2]
[333961888,1722649864458,-151.0,0.00016986,2]
[333961889,1722649864471,-727.41,0.00016986,2]
[333961890,1722649864481,-500.0,0.00016986,2]
[333961891,1722649864491,-500.0,0.00016986,2]
[333961892,1722649864500,-1922.65,0.00016986,2]
[333961893,1722649864510,-500.0,0.00016986,2]
[333961894,1722649864519,-704.63,0.00016986,2]
[333961895,1722649864529,-500.0,0.00016986,2]
[333961896,1722649864539,-1288.16,0.00016986,2]
[333961897,1722649864548,-520.19,0.00016986,2]
[333961898,1722649864558,-151.0,0.00016986,2]
[333961899,1722649864957,-1807.71,0.00016986,2]
[333961900,1722649864983,-1339.27,0.00016986,2]
[333961901,1722649864993,-865.17,0.00016986,2]
[333961902,1722649865003,-1127.0,0.00016986,2]
[333961903,1722649865013,-500.0,0.00016986,2]
[333961904,1722649865023,-734.51,0.00016986,2]
[333961905,1722649865033,-962.69,0.00016986,2]
[333961906,1722649865042,-153.667334,0.00016986,2]
[333961907,1722649865052,-500.0,0.00016986,2]
[333961908,1722649865061,-1786.81,0.00016986,2]
[333961909,1722649865071,-13551.65,0.00016986,2]
[333961910,1722649865080,-551.16,0.00016986,2]
[333961911,1722649865090,-1012.61,0.00016986,2]
[333961912,1722649865099,-570.53,0.00016986,2]
[333961913,1722649865108,-1053.33,0.00016986,2]
[333961914,1722649865119,-516.99,0.00016986,2]
[333961915,1722649865128,-1329.41,0.00016986,2]
[333961916,1722649865138,-500.0,0.00016986,2]
[333961917,1722649865148,-500.0,0.00016986,2]
[333961918,1722649865158,-866.53,0.00016986,2]
[333961919,1722649865167,-1208.38,0.00016986,2]
[333961920,1722649865177,-500.0,0.00016986,2]
[333961921,1722649865186,-500.0,0.00016986,2]
[333961922,1722649865196,-500.0,0.00016986,2]
[333961923,1722649865206,-15945.04,0.00016986,2]
[333961924,1722649865215,-500.0,0.00016986,2]
[333961925,1722649865225,-33573.91,0.00016986,2]
[333961926,1722649865235,-500.0,0.00016986,2]
[333961927,1722649865244,-6663.83,0.00016986,2]
[333961928,1722649865254,-784.36,0.00016986,2]
[333961929,1722649865264,-862.31,0.00016986,2]
[333961930,1722649865273,-500.0,0.00016986,2]
[333961931,1722649865283,-1790.49,0.00016986,2]
[333961932,1722649865292,-500.0,0.00016986,2]
[333961933,1722649865302,-1285.19,0.00016986,2]
[333961934,1722649865311,-500.0,0.00016986,2]
[333961935,1722649865321,-500.0,0.00016986,2]
[333961936,1722649865331,-1221.9,0.00016986,2]
[333961937,1722649865340,-500.0,0.00016986,2]
[333961938,1722649865350,-500.0,0.00016986,2]
[333961939,1722649865362,-837.08,0.00016986,2]
[333961940,1722649865372,-151.212975,0.00016986,2]
[333961941,1722649865386,-653.19,0.00016986,2]
[333961942,1722649865396,-632.74,0.00016986,2]
[333961943,1722649865406,-943.45,0.00016986,2]
[333961944,1722649865416,-3765.45,0.00016986,2]
[333961945,1722649865426,-10370.7,0.00016986,2]
[333961946,1722649865436,-500.0,0.00016986,2]
[333961947,1722649865446,-1249.87,0.00016986,2]
[333961948,1722649865457,-3115.96,0.00016986,2]
[333961949,1722649865467,-1415.15,0.00016986,2]
[333961950,1722649865477,-1080.17,0.00016986,2]
[333961951,1722649865486,-2202.51,0.00016986,2]
[333961952,1722649865496,-500.0,0.00016986,2]
[333961953,1722649865506,-1295.18,0.00016986,2]
[333961954,1722649865515,-1279.22,0.00016986,2]
[333961955,1722649865525,-500.0,0.00016986,2]
[333961956,1722649865535,-1265.62,0.00016986,2]
[333961957,1722649865545,-151.0,0.00016986,2]
[333961958,1722649865556,-500.0,0.00016986,2]
[333961959,1722649865567,-500.0,0.00016986,2]
[333961960,1722649865578,-500.0,0.00016986,2]
[333961961,1722649865588,-903.97,0.00016986,2]
[333961962,1722649865599,-6896.96,0.00016986,2]
[333961963,1722649865609,-500.0,0.00016986,2]
[333961964,1722649865625,-500.0,0.00016986,2]
[333961965,1722649865635,-5086.82,0.00016986,2]
[333961966,1722649865645,-898.3,0.00016986,2]
[333961967,1722649865654,-2252.84,0.00016986,2]
[333961968,1722649865665,-626.92,0.00016986,2]
[333961969,1722649865675,-1468.48,0.00016986,2]
[333961970,1722649865685,-726.15,0.00016986,2]
[333961971,1722649865695,-7118.7,0.00016986,2]
[333961972,1722649865705,-500.0,0.00016986,2]
[333961973,1722649865715,-500.0,0.00016986,2]
[333961974,1722649865724,-500.0,0.00016986,2]
[333961975,1722649865734,-500.0,0.00016986,2]
[333961976,1722649865744,-1463.1,0.00016986,2]
[333961977,1722649865754,-3742.31,0.00016986,2]
[333961978,1722649865764,-151.258854,0.00016986,2]
[333961979,1722649865773,-3566.56,0.00016986,2]
[333961980,1722649865783,-1226.25,0.00016986,2]
[333961981,1722649865793,-1971.89,0.00016986,2]
[333961982,1722649865803,-500.0,0.00016986,2]
[333961983,1722649865813,-3075.02,0.00016986,2]
[333961984,1722649865823,-1185.47,0.00016986,2]
[333961985,1722649865832,-552.85,0.00016986,2]
[333961986,1722649865842,-743.49,0.00016986,2]
[333961987,1722649865852,-888.24,0.00016986,2]
[333961988,1722649865865,-5562.74,0.00016986,2]
[333961989,1722649865875,-1183.17,0.00016986,2]
[333961990,1722649865885,-500.0,0.00016986,2]
[333961991,1722649865895,-3096.34,0.00016986,2]
[333961992,1722649865905,-151.0,0.00016986,2]
[333961993,1722649865915,-500.0,0.00016986,2]
[333961994,1722649865924,-1054.9,0.00016986,2]
[333961995,1722649865934,-1045.47,0.00016986,2]
[333961996,1722649865943,-500.0,0.00016986,2]
[333961997,1722649865953,-15589.0,0.00016986,2]
[333961998,1722649865963,-1207.94,0.00016986,2]
[333961999,1722649865974,-651.41,0.00016986,2]
[333962000,1722649865984,-1219.48,0.00016986,2]
[333962001,1722649865994,-500.0,0.00016986,2]
[333962002,1722649866004,-2746.46,0.00016986,2]
[333962003,1722649866014,-500.0,0.00016986,2]
[333962004,1722649866024,-4493.35,0.00016986,2]
[333962005,1722649866034,-1681.17,0.00016986,2]
[333962006,1722649866043,-500.0,0.00016986,2]
[333962007,1722649866053,-1400.25,0.00016986,2]
[333962008,1722649866063,-2308.17,0.00016986,2]
[333962009,1722649866073,-500.0,0.00016986,2]
[333962010,1722649866083,-4608.08,0.00016986,2]
[333962011,1722649866092,-500.0,0.00016986,2]
[333962012,1722649866102,-730.54,0.00016986,2]
[333962013,1722649866113,-1068.05,0.00016986,2]
[333962014,1722649866123,-2347.15,0.00016986,2]
[333962015,1722649866132,-500.0,0.00016986,2]
[333962016,1722649866142,-1306.81,0.00016986,2]
[333962017,1722649866152,-577.32,0.00016986,2]
[333962018,1722649866162,-500.0,0.00016986,2]
[333962019,1722649866172,-1235.54,0.00016986,2]
[333962020,1722649866182,-914.78,0.00016986,2]
[333962021,1722649866191,-2077.38,0.00016986,2]
[333962022,1722649866202,-1655.38,0.00016986,2]
[333962023,1722649866212,-7387.69,0.00016986,2]
[333962024,1722649866222,-500.0,0.00016986,2]
[333962025,1722649866232,-500.0,0.00016986,2]
[333962026,1722649866241,-664.56,0.00016986,2]
[333962027,1722649866251,-4811.33,0.00016986,2]
[333962028,1722649866261,-500.0,0.00016986,2]
[333962029,1722649866270,-500.0,0.00016986,2]
[333962030,1722649866280,-1423.38,0.00016986,2]
[333962031,1722649866289,-1614.1,0.00016986,2]
[333962032,1722649866299,-511.65,0.00016986,2]
[333962033,1722649866308,-500.0,0.00016986,2]
[333962034,1722649866317,-9846.06,0.00016986,2]
[333962035,1722649866327,-576.23,0.00016986,2]
[333962036,1722649866337,-1264.8,0.00016986,2]
[333962037,1722649866347,-500.0,0.00016986,2]
[333962038,1722649866357,-1329.65,0.00016986,2]
[333962039,1722649866370,-500.0,0.00016986,2]
[333962040,1722649866379,-909.25,0.00016986,2]
[333962041,1722649866393,-518.27,0.00016986,2]
[333962042,1722649866403,-500.0,0.00016986,2]
[333962043,1722649866413,-500.0,0.00016986,2]
[333962044,1722649866423,-500.0,0.00016986,2]
[333962045,1722649866434,-500.0,0.00016986,2]
[333962046,1722649866445,-964.25,0.00016986,2]
[333962047,1722649866455,-1757.43,0.00016986,2]
[333962048,1722649866467,-897.36,0.00016986,2]
[333962049,1722649866478,-551.22,0.00016986,2]
[333962050,1722649866488,-500.0,0.00016986,2]
[333962051,1722649866497,-500.0,0.00016986,2]
[333962052,1722649866507,-500.0,0.00016986,2]
[333962053,1722649866516,-1771.89,0.00016986,2]
[333962054,1722649866525,-500.0,0.00016986,2]
[333962055,1722649866535,-1233.86,0.00016986,2]
[333962056,1722649866545,-5320.19,0.00016986,2]
[333962057,1722649866555,-698.86,0.00016986,2]
[333962058,1722649866566,-500.0,0.00016986,2]
[333962059,1722649866576,-2120.84,0.00016986,2]
[333962060,1722649866586,-673.59,0.00016986,2]
[333962061,1722649866595,-500.0,0.00016986,2]
[333962062,1722649866605,-521.13,0.00016986,2]
[333962063,1722649866615,-500.0,0.00016986,2]
[333962064,1722649866625,-500.0,0.00016986,2]
[333962065,1722649866635,-1194.08,0.00016986,2]
[333962066,1722649866645,-9728.43,0.00016986,2]
[333962067,1722649866655,-500.0,0.00016986,2]
[333962068,1722649866665,-500.0,0.00016986,2]
[333962069,1722649866674,-1495.7,0.00016986,2]
[333962070,1722649866684,-1589.08,0.00016986,2]
[333962071,1722649866694,-2677.38,0.00016986,2]
[333962072,1722649866703,-942.11,0.00016986,2]
[333962073,1722649866713,-500.0,0.00016986,2]
[333962074,1722649866723,-2478.7,0.00016986,2]
[333962075,1722649866732,-500.0,0.00016986,2]
[333962076,1722649866742,-670.56,0.00016986,2]
[333962077,1722649866752,-749.9,0.00016986,2]
[333962078,1722649866761,-500.0,0.00016986,2]
[333962079,1722649866772,-1946.32,0.00016986,2]
[333962080,1722649866782,-500.0,0.00016986,2]
[333962081,1722649866791,-3580.3,0.00016986,2]
[333962082,1722649866801,-500.0,0.00016986,2]
[333962083,1722649866811,-500.0,0.00016986,2]
[333962084,1722649866821,-1055.1,0.00016986,2]
[333962085,1722649866830,-500.0,0.00016986,2]
[333962086,1722649866841,-1667.66,0.00016986,2]
[333962087,1722649866851,-729.57,0.00016986,2]
[333962088,1722649866862,-704.86,0.00016986,2]
[333962089,1722649866872,-500.0,0.00016986,2]
[333962090,1722649866882,-500.0,0.00016986,2]
[333962091,1722649866891,-801.24,0.00016986,2]
[333962092,1722649866901,-5780.91,0.00016986,2]
[333962093,1722649866910,-559.94910246,0.00016986,2]
[333962094,1722649866920,-500.0,0.00016986,2]
[333962095,1722649866930,-500.0,0.00016986,2]
[333962096,1722649866939,-500.0,0.00016986,2]
[333962097,1722649866949,-1402.25,0.00016986,2]
[333962098,1722649866959,-1752.51,0.00016986,2]
[333962099,1722649866969,-500.0,0.00016986,2]
[333962100,1722649866979,-2252.56,0.00016986,2]
[333962101,1722649866989,-8312.09,0.00016986,2]
[333962102,1722649866998,-5108.78,0.00016986,2]
[333962103,1722649867008,-632.48,0.00016986,2]
[333962104,1722649867018,-1945.92,0.00016986,2]
[333962105,1722649867028,-1759.83,0.00016986,2]
[333962106,1722649867039,-500.0,0.00016986,2]
[333962107,1722649867050,-1257.19,0.00016986,2]
[333962108,1722649867061,-1754.89,0.00016986,2]
[333962109,1722649867071,-1014.46,0.00016986,2]
[333962110,1722649867082,-2716.17,0.00016986,2]
[333962111,1722649867093,-501.08,0.00016986,2]
[333962112,1722649867103,-690.59,0.00016986,2]
[333962113,1722649867115,-4139.99,0.00016986,2]
[333962114,1722649867129,-3568.54,0.00016986,2]
[333962115,1722649867139,-151.0,0.00016986,2]
[333962116,1722649867149,-151.0,0.00016986,2]
[333962117,1722649867160,-3159.25,0.00016986,2]
[333962118,1722649867170,-2890.09,0.00016986,2]
[333962119,1722649867180,-500.0,0.00016986,2]
[333962120,1722649867190,-500.0,0.00016986,2]
[333962121,1722649867200,-500.0,0.00016986,2]
[333962122,1722649867210,-3090.52,0.00016986,2]
[333962123,1722649867219,-500.0,0.00016986,2]
[333962124,1722649867229,-1654.87,0.00016986,2]
[333962125,1722649867239,-151.0,0.00016986,2]
[333962126,1722649867249,-512.54,0.00016986,2]
[333962127,1722649867260,-1751.95,0.00016986,2]
[333962128,1722649867270,-628.31,0.00016986,2]
[333962129,1722649867280,-531.46,0.00016986,2]
[333962130,1722649867290,-1139.17,0.00016986,2]
[333962131,1722649867300,-624.76,0.00016986,2]
[333962132,1722649867310,-5392.49,0.00016986,2]
[333962133,1722649867319,-500.0,0.00016986,2]
[333962134,1722649867329,-1394.06,0.00016986,2]
[333962135,1722649867339,-2816.99,0.00016986,2]
[333962136,1722649867349,-557.27,0.00016986,2]
[333962137,1722649867359,-3194.59,0.00016986,2]
[333962138,1722649867377,-500.0,0.00016986,2]
[333962139,1722649867387,-500.0,0.00016986,2]
[333962140,1722649867397,-674.33,0.00016986,2]
[333962141,1722649867505,-1707.62,0.00016986,2]
[333962142,1722649867514,-500.0,0.00016986,2]
[333962143,1722649867523,-500.0,0.00016986,2]
[333962144,1722649867533,-500.0,0.00016986,2]
[333962145,1722649867542,-500.0,0.00016986,2]
[333962146,1722649867552,-500.0,0.00016986,2]
[333962147,1722649867561,-500.0,0.00016986,2]
[333962148,1722649867571,-607.51,0.00016986,2]
[333962149,1722649867580,-513.71,0.00016986,2]
[333962150,1722649867589,-1698.11,0.00016986,2]
[333962151,1722649867598,-555.27,0.00016986,2]
[333962152,1722649867608,-2285.28,0.00016986,2]
[333962153,1722649867627,-151.0,0.00016986,2]
[333962154,1722649867636,-636.34,0.00016986,2]
[333962155,1722649867646,-2927.51,0.00016986,2]
[333962156,1722649867655,-670.27,0.00016986,2]
[333962157,1722649867666,-2357.53,0.00016986,2]
[333962158,1722649867676,-500.0,0.00016986,2]
[333962159,1722649867685,-500.0,0.00016986,2]
[333962160,1722649867695,-3352.6,0.00016986,2]
[333962161,1722649867704,-2944.33,0.00016986,2]
[333962162,1722649867713,-500.0,0.00016986,2]
[333962163,1722649867722,-1872.51,0.00016986,2]
[333962164,1722649867732,-3194.11,0.00016986,2]
[333962165,1722649867741,-151.0,0.00016986,2]
[333962166,1722649867751,-1489.08,0.00016986,2]
[333962167,1722649867760,-500.0,0.00016986,2]
[333962168,1722649867770,-500.0,0.00016986,2]
[333962169,1722649867779,-500.0,0.00016986,2]
[333962170,1722649867789,-500.0,0.00016986,2]
[333962171,1722649867799,-500.0,0.00016986,2]
[333962172,1722649867808,-500.0,0.00016986,2]
[333962173,1722649867818,-500.0,0.00016986,2]
[333962174,1722649867827,-500.67,0.00016986,2]
[333962175,1722649867837,-1683.64,0.00016986,2]
[333962176,1722649867846,-151.0,0.00016986,2]
[333962177,1722649867855,-500.0,0.00016986,2]
[333962178,1722649867870,-500.0,0.00016986,2]
[333962179,1722649867879,-4714.78,0.00016986,2]
[333962180,1722649867888,-2696.98,0.00016986,2]
[333962181,1722649867897,-1483.81,0.00016986,2]
[333962182,1722649867907,-2707.61,0.00016986,2]
[333962183,1722649867916,-500.0,0.00016986,2]
[333962184,1722649867926,-500.0,0.00016986,2]
[333962185,1722649867935,-500.0,0.00016986,2]
[333962186,1722649867945,-1795.85,0.00016986,2]
[333962187,1722649867955,-1711.65,0.00016986,2]
[333962188,1722649867965,-500.0,0.00016986,2]
[333962189,1722649867974,-151.0,0.00016986,2]
[333962190,1722649867984,-500.0,0.00016986,2]
[333962191,1722649867994,-500.0,0.00016986,2]
[333962192,1722649868003,-151.0,0.00016986,2]
[333962193,1722649868012,-5096.55,0.00016986,2]
[333962194,1722649868021,-500.0,0.00016986,2]
[333962195,1722649868031,-1063.77,0.00016986,2]
[333962196,1722649868041,-500.0,0.00016986,2]
[333962197,1722649868050,-1669.51,0.00016986,2]
[333962198,1722649868060,-500.0,0.00016986,2]
[333962199,1722649868069,-4399.85,0.00016986,2]
[333962200,1722649868079,-500.0,0.00016986,2]
[333962201,1722649868088,-587.43,0.00016986,2]
[333962202,1722649868097,-500.0,0.00016986,2]
[333962203,1722649868106,-1091.44,0.00016986,2]
[333962204,1722649868121,-500.0,0.00016986,2]
[333962205,1722649868130,-5398.34,0.00016986,2]
[333962206,1722649868140,-2070.96,0.00016986,2]
[333962207,1722649868150,-500.0,0.00016986,2]
[333962208,1722649868159,-796.18,0.00016986,2]
[333962209,1722649868169,-290.48489005,0.00016986,2]
[333962210,1722649868179,-3773.69,0.00016986,2]
[333962211,1722649868188,-500.0,0.00016986,2]
[333962212,1722649868199,-624.97,0.00016986,2]
[333962213,1722649868209,-1711.3,0.00016986,2]
[333962214,1722649868219,-151.0,0.00016986,2]
[333962215,1722649868228,-185.79429661,0.00016986,2]
[333962216,1722649868238,-1561.23,0.00016986,2]
[333962217,1722649868247,-500.0,0.00016986,2]
[333962218,1722649868256,-1544.34,0.00016986,2]
[333962219,1722649868266,-3340.67,0.00016986,2]
[333962220,1722649868276,-500.0,0.00016986,2]
[333962221,1722649868286,-502.81,0.00016986,2]
[333962222,1722649868296,-500.0,0.00016986,2]
[333962223,1722649868306,-1886.92,0.00016986,2]
[333962224,1722649868315,-1131.33,0.00016986,2]
[333962225,1722649868325,-3876.52,0.00016986,2]
[333962226,1722649868336,-500.0,0.00016986,2]
[333962227,1722649868345,-1118.15,0.00016986,2]
[333962228,1722649868355,-1761.5,0.00016986,2]
[333962229,1722649868369,-531.68,0.00016986,2]
[333962230,1722649868384,-11118.7,0.00016986,2]
[333962231,1722649868398,-500.0,0.00016986,2]
[333962232,1722649868407,-3921.71,0.00016986,2]
[333962233,1722649868417,-2241.61,0.00016986,2]
[333962234,1722649868427,-614.89,0.00016986,2]
[333962235,1722649868438,-500.0,0.00016986,2]
[333962236,1722649868447,-1064.95,0.00016986,2]
[333962237,1722649868456,-524.7,0.00016986,2]
[333962238,1722649868467,-5408.66,0.00016986,2]
[333962239,1722649868476,-540.43,0.00016986,2]
[333962240,1722649868486,-500.0,0.00016986,2]
[333962241,1722649868495,-1635.52,0.00016986,2]
[333962242,1722649868504,-500.0,0.00016986,2]
[333962243,1722649868514,-521.67,0.00016986,2]
[333962244,1722649868523,-2659.06,0.00016986,2]
[333962245,1722649868532,-151.371359,0.00016986,2]
[333962246,1722649868542,-1041.83,0.00016986,2]
[333962247,1722649868552,-1865.74,0.00016986,2]
[333962248,1722649868562,-882.92,0.00016986,2]
[333962249,1722649868572,-572.89,0.00016986,2]
[333962250,1722649868581,-500.0,0.00016986,2]
[333962251,1722649868591,-2815.68,0.00016986,2]
[333962252,1722649868601,-500.0,0.00016986,2]
[333962253,1722649868613,-268.54871198,0.00016999,2]
[333962254,1722649868623,-1099.0,0.00017001,2]
[333962255,1722649868632,-243.4601415,0.00017004,2]
[333962256,1722649868641,-2000.0,0.00017048,2]
[333962257,1722649868650,-200.0,0.00017048,2]
[333962258,1722649868660,-154.59494864,0.00017079,2]
[333962259,1722649868669,-4777.22467371,0.00017099,2]
[333962260,1722649868678,-500.0,0.00017158,2]
[333962261,1722649868687,-200.0,0.00017158,2]
[333962262,1722649868697,-1082.76419074,0.00017183,2]
[333962263,1722649868706,-1074.85207914,0.00017183,2]
[333962264,1722649868715,-155.5,0.00017222,2]
[333962265,1722649868724,-169.7526349,0.00017225,2]
[333962266,1722649868733,-150.11721836,0.00017235,2]
[333962267,1722649868742,-500.0,0.0001726,2]
[333962268,1722649868751,-500.0,0.0001726,2]
[333962269,1722649868760,-500.0,0.0001726,2]
[333962270,1722649868770,-610.06,0.0001726,2]
[333962271,1722649868779,-500.0,0.0001726,2]
[333962272,1722649868788,-500.0,0.0001726,2]
[333962273,1722649868797,-500.0,0.0001726,2]
[333962274,1722649868807,-500.0,0.0001726,2]
[333962275,1722649868816,-500.0,0.0001726,2]
[333962276,1722649868825,-1261.99,0.0001726,2]
[333962277,1722649868834,-500.0,0.0001726,2]
[333962278,1722649868843,-151.0,0.0001726,2]
[333962279,1722649868852,-901.67,0.0001726,2]
[333962280,1722649868863,-604.06035628,0.0001726,2]
[333962281,1722649868873,-500.0,0.0001726,2]
[333962282,1722649868882,-500.0,0.0001726,2]
[333962283,1722649868892,-500.0,0.0001726,2]
[333962284,1722649868901,-744.47,0.0001726,2]
[333962285,1722649868910,-742.73,0.0001726,2]
[333962286,1722649868919,-833.64,0.0001726,2]
[333962287,1722649868928,-680.02,0.0001726,2]
[333962288,1722649868937,-549.52920088,0.0001726,2]
[333962289,1722649868946,-500.0,0.0001726,2]
[333962290,1722649868955,-511.63,0.0001726,2]
[333962291,1722649868965,-500.0,0.0001726,2]
[333962292,1722649868974,-639.16,0.0001726,2]
[333962293,1722649868983,-474.0043046,0.0001726,2]
[333962294,1722649868992,-500.0,0.0001726,2]
[333962295,1722649869002,-500.0,0.0001726,2]
[333962296,1722649869011,-500.0,0.0001726,2]
[333962297,1722649869021,-500.0,0.0001726,2]
[333962298,1722649869030,-500.0,0.0001726,2]
[333962299,1722649869039,-500.0,0.0001726,2]
[333962300,1722649869049,-500.0,0.0001726,2]
[333962301,1722649869058,-500.0,0.0001726,2]
[333962302,1722649869067,-781.45,0.0001726,2]
[333962303,1722649869077,-500.0,0.0001726,2]
[333962304,1722649869086,-500.0,0.0001726,2]
[333962305,1722649869095,-754.73,0.0001726,2]
[333962306,1722649869104,-500.0,0.0001726,2]
[333962307,1722649869114,-500.0,0.0001726,2]
[333962308,1722649869124,-500.0,0.0001726,2]
[333962309,1722649869133,-1260.28,0.0001726,2]
[333962310,1722649869143,-500.0,0.0001726,2]
[333962311,1722649869152,-500.0,0.0001726,2]
[333962312,1722649869162,-500.0,0.0001726,2]
[333962313,1722649869171,-526.81,0.0001726,2]
[333962314,1722649869181,-923.16,0.0001726,2]
[333962315,1722649869189,-522.19,0.0001726,2]
[333962316,1722649869199,-500.0,0.0001726,2]
[333962317,1722649869209,-500.0,0.0001726,2]
[333962318,1722649869219,-546.65,0.0001726,2]
[333962319,1722649869228,-500.0,0.0001726,2]
[333962320,1722649869238,-743.82,0.0001726,2]
[333962321,1722649869247,-151.0,0.0001726,2]
[333962322,1722649869256,-641.48235898,0.0001726,2]
[333962323,1722649869265,-500.0,0.0001726,2]
[333962324,1722649869273,-671.57,0.0001726,2]
[333962325,1722649869283,-500.0,0.0001726,2]
[333962326,1722649869292,-776.24,0.0001726,2]
[333962327,1722649869302,-500.0,0.0001726,2]
[333962328,1722649869310,-500.0,0.0001726,2]
[333962329,1722649869320,-600.62,0.0001726,2]
[333962330,1722649869329,-500.0,0.0001726,2]
[333962331,1722649869338,-500.0,0.0001726,2]
[333962332,1722649869348,-173.23332005,0.0001726,2]
[333962333,1722649869357,-500.0,0.0001726,2]
[333962334,1722649869367,-500.0,0.0001726,2]
[333962335,1722649869376,-977.68,0.0001726,2]
[333962336,1722649869386,-500.0,0.0001726,2]
[333962337,1722649869397,-500.0,0.0001726,2]
[333962338,1722649869407,-1153.34,0.0001726,2]
[333962339,1722649869417,-521.43,0.0001726,2]
[333962340,1722649869426,-661.44,0.0001726,2]
[333962341,1722649869438,-563.21876008,0.0001726,2]
[333962342,1722649869447,-500.0,0.0001726,2]
[333962343,1722649869456,-547.63,0.0001726,2]
[333962344,1722649869466,-500.0,0.0001726,2]
[333962345,1722649869476,-988.23,0.0001726,2]
[333962346,1722649869485,-500.0,0.0001726,2]
[333962347,1722649869495,-500.0,0.0001726,2]
[333962348,1722649869504,-652.46,0.0001726,2]
[333962349,1722649869513,-500.0,0.0001726,2]
[333962350,1722649869523,-500.0,0.0001726,2]